fUSD/lending_fUSD_20241222
["ID","MTS","AMOUNT","RATE_DAILY","PERIOD"]
[346349192,1734903054662,-500.0,0.0002,2]
[346349193,1734903054671,-6500.0,0.0002,2]
[346349194,1734903054681,-500.0,0.0002,2]
[346349195,1734903054691,-500.0,0.0002,2]
[346349196,1734903054700,-508.03,0.0002,2]
[346349197,1734903054708,-500.0,0.0002,2]
[346349198,1734903054717,-297.45562122,0.0002,2]
[346349199,1734903054727,-500.0,0.0002,2]
[346349200,1734903054736,-500.0,0.0002,2]
[346349201,1734903054745,-1343.67,0.0002,2]
[346349202,1734903054754,-500.0,0.0002,2]
[346349203,1734903054763,-500.0,0.0002,2]
[346349204,1734903054772,-500.0,0.0002,2]
[346349205,1734903054782,-500.0,0.0002,2]
[346349206,1734903054791,-500.0,0.0002,2]
[346349207,1734903054802,-500.0,0.0002,2]
[346349208,1734903054811,-500.0,0.0002,2]
[346349209,1734903054820,-500.0,0.0002,2]
[346349210,1734903054828,-500.0,0.0002,2]
[346349211,1734903054837,-500.0,0.0002,2]
[346349212,1734903054846,-908.25,0.0002,2]
[346349213,1734903054855,-1897.44,0.0002,2]
[346349214,1734903054863,-755.25,0.0002,2]
[346349215,1734903054872,-500.0,0.0002,2]
[346349216,1734903054881,-542.36,0.0002,2]
[346349217,1734903054890,-500.0,0.0002,2]
[346349218,1734903054899,-979.3,0.0002,2]
[346349219,1734903054907,-756.38,0.0002,2]
[346349220,1734903054917,-674.74,0.0002,2]
[346349221,1734903054926,-500.0,0.0002,2]
[346349222,1734903054936,-500.0,0.0002,2]
[346349223,1734903054945,-1243.88,0.0002,2]
[346349224,1734903054954,-500.0,0.0002,2]
[346349225,1734903054964,-2181.77,0.0002,2]
[346349226,1734903054977,-10952.68,0.0002,2]
[346349227,1734903054987,-500.0,0.0002,2]
[346349228,1734903054996,-2104.91,0.0002,2]
[346349229,1734903055005,-500.0,0.0002,2]
[346349230,1734903055014,-1164.51,0.0002,2]
[346349231,1734903055023,-1015.92,0.0002,2]
[346349232,1734903055032,-2460.16,0.0002,2]
[346349233,1734903055042,-733.55,0.0002,2]
[346349234,1734903055051,-3847.11,0.0002,2]
[346349235,1734903055060,-500.0,0.0002,2]
[346349236,1734903055070,-2848.98,0.0002,2]
[346349237,1734903055080,-500.0,0.0002,2]
[346349238,1734903055090,-442.39163453,0.0002,2]
[346349239,1734903055100,-33993.3,0.0002,2]
[346349240,1734903055109,-500.0,0.0002,2]
[346349241,1734903055118,-500.0,0.0002,2]
[346349242,1734903055127,-1861.1,0.0002,2]
[346349243,1734903055136,-1407.76,0.0002,2]
[346349244,1734903055146,-2455.03,0.0002,2]
[346349245,1734903055156,-12135.1,0.0002,2]
[346349246,1734903055165,-158.0,0.0002,2]
[346349247,1734903055174,-500.0,0.0002,2]
[346349248,1734903055183,-500.0,0.0002,2]
[346349249,1734903055192,-711.53,0.0002,2]
[346349250,1734903055201,-2099.97,0.0002,2]
[346349251,1734903055211,-500.0,0.0002,2]
[346349252,1734903055220,-194.5,0.0002,2]
[346349253,1734903055230,-31101.9081994,0.0002,2]
[346349254,1734903055240,-15757.56,0.0002,2]
[346349255,1734903055250,-500.0,0.0002,2]
[346349256,1734903055260,-1528.83,0.0002,2]
[346349257,1734903055269,-1166.84,0.0002,2]
[346349258,1734903055279,-1808.22,0.0002,2]
[346349259,1734903055287,-500.0,0.0002,2]
[346349260,1734903055298,-500.0,0.0002,2]
[346349261,1734903055307,-500.0,0.0002,2]
[346349262,1734903055316,-1114.49,0.0002,2]
[346349263,1734903055325,-7500.0,0.0002,2]
[346349264,1734903055334,-3361.92,0.0002,2]
[346349265,1734903055344,-500.0,0.0002,2]
[346349266,1734903055353,-500.0,0.0002,2]
[346349267,1734903055362,-813.74,0.0002,2]
[346349268,1734903055371,-4906.42,0.0002,2]
[346349269,1734903055380,-114066.45756775,0.0002,4]
[346349270,1734903055389,-500.0,0.0002,2]
[346349271,1734903055399,-500.0,0.0002,2]
[346349272,1734903055408,-500.0,0.0002,2]
[346349273,1734903055417,-881.3,0.0002,2]
[346349274,1734903055427,-500.0,0.0002,2]
[346349275,1734903055436,-1272.98,0.0002,2]
[346349276,1734903055446,-500.0,0.0002,2]
[346349277,1734903055455,-56963.13170792,0.0002,2]
[346349278,1734903055464,-500.0,0.0002,2]
[346349279,1734903055473,-2044.81,0.0002,2]
[346349280,1734903055483,-1190.95,0.0002,2]
[346349281,1734903055491,-1236.41145142,0.0002,2]
[346349282,1734903055500,-500.0,0.0002,2]
[346349283,1734903055510,-500.0,0.0002,2]
[346349284,1734903055518,-907.15,0.0002,2]
[346349285,1734903055527,-570.5,0.0002,2]
[346349286,1734903055536,-8193.58,0.0002,2]
[346349287,1734903055546,-17552.28,0.0002,2]
[346349288,1734903055555,-13481253.78280457,0.0002,2]
[346349289,1734903055854,-122032.46742222,0.0002,2]
[346349290,1734903055865,-202021.3574429,0.0002,2]
[346349291,1734903055877,-302.98943499,0.0002,2]
[346349292,1734903055895,-151220.08667092,0.0002,2]
[346349293,1734903055906,-3869.19333848,0.0002,2]
[346349294,1734903055917,-929.92075277,0.0002,2]
[346349295,1734903055937,-1802.36640994,0.0002,2]
[346349296,1734903056170,-500.0,0.00019178,2]
[346349297,1734903056179,-699.79854666,0.0002,2]
[346349298,1734903056190,-807.94514977,0.0002,2]
[346349299,1734903056202,-665.31684,0.0002,2]
[346349300,1734903056217,-577.46205938,0.0002,2]
[346349301,1734903056234,-8839.91581175,0.0002,2]
[346349302,1734903056247,-1423.12,0.0002,2]
[346349303,1734903056258,-289.90052373,0.0002,2]
[346349304,1734903056716,-1070.16055432,0.000191,2]
[346349305,1734903056728,-282.56311031,0.000191,2]
[346349306,1734903056737,-542.36,0.00019178,2]
[346349307,1734903056746,-500.0,0.00019178,2]
[346349308,1734903056755,-500.0,0.00019178,2]
[346349309,1734903056765,-272.1,0.00019178,2]
[346349310,1734903056774,-500.0,0.00019178,2]
[346349311,1734903056785,-542.36,0.00019452,2]
[346349312,1734903056794,-542.36,0.00019726,2]
[346349313,1734903056803,-5930.02048969,0.00019791,2]
[346349314,1734903056814,-826.63609716,0.00019791,2]
[346349315,1734903056825,-296.21242944,0.00019791,2]
[346349316,1734903056840,-2537.13098371,0.00019791,2]
[346349317,1734903056849,-1088014.85934244,0.0002,2]
[346349318,1734903056860,-645.12,0.0002,2]
[346349319,1734903056870,-3713.11158809,0.0002,2]
[346349320,1734903056881,-3700.04995,0.0002,2]
[346349321,1734903056892,-11771.46063629,0.0002,2]
[346349322,1734903056903,-296.13443335,0.0002,2]
[346349323,1734903056914,-3480.95163104,0.0002,2]
[346349324,1734903057126,-367.80171272,0.00019178,2]
[346349325,1734903057136,-132.19828728,0.00019178,2]
[346349326,1734903057146,-19079.80171272,0.0002,2]
[346349327,1734903057157,-638.61838739,0.0002,2]
[346349328,1734903057217,-1352.72366463,0.000191,2]
[346349329,1734903057226,-17213.82809683,0.0002,2]
[346349330,1734903057237,-23928.47375084,0.0002,2]
[346349331,1734903057284,-337.32430201,0.00019178,2]
[346349332,1734903057296,-245.60569799,0.00019178,2]
[346349333,1734903057305,-97.58876351,0.0002,2]
[346349334,1734903057321,-49516.89251067,0.0002,2]
[346349335,1734903057332,-4700.50952264,0.0002,2]
[346349336,1734903057351,-5773.08,0.0002,2]
[346349337,1734903057362,-1016.32085,0.0002,2]
[346349351,1734904231779,-450.0,0.00013,2]
[346349352,1734904231789,-500.0,0.00015,2]
[346349353,1734904231798,-1141.93,0.00015937,2]
[346349354,1734904231807,-500.0,0.00016466,2]
[346349355,1734904231816,-550.0,0.00017,2]
[346349356,1734904231825,-250.0,0.00017821,2]
[346349357,1734904231834,-855.8,0.00017864,2]
[346349358,1734904231843,-1000.0,0.00017865,2]
[346349359,1734904231853,-150.0,0.00018,2]
[346349360,1734904231862,-250.0,0.00018004,2]
[346349361,1734904231871,-3939.29033811,0.00018118,2]
[346349362,1734904231882,-5483.58920946,0.00018118,2]
[346349363,1734904231894,-785.62130943,0.00018118,2]
[346349364,1734904231912,-13691.499143,0.00018118,2]
[346349365,1734904231921,-1141.93,0.00018201,2]
[346349366,1734904231930,-261.32,0.00018271,2]
[346349367,1734904231939,-500.0,0.00018356,2]
[346349368,1734904231948,-150.0,0.00018356,2]
[346349369,1734904231958,-502.03,0.00018362,2]
[346349370,1734904231967,-1052.94,0.00018385,2]
[346349371,1734904231976,-495.84,0.00018385,2]
[346349372,1734904231986,-492.98,0.00018385,2]
[346349373,1734904231998,-501.36,0.00018545,2]
[346349374,1734904232007,-921.78,0.00018546,2]
[346349375,1734904232015,-506.38,0.00018731,2]
[346349376,1734904232025,-504.95,0.00018771,2]
[346349377,1734904232036,-505.62,0.00018831,2]
[346349378,1734904232045,-164.14,0.00018858,2]
[346349379,1734904232054,-493.61,0.00018876,2]
[346349380,1734904232063,-491.86,0.00018876,2]
[346349381,1734904232073,-507.66,0.00018876,2]
[346349382,1734904232082,-156.75,0.0001893,2]
[346349383,1734904232091,-156.75,0.00018977,2]
[346349384,1734904232100,-368.602,0.00019,2]
[346349385,1734904232109,-600.0,0.00019,2]
[346349386,1734904232117,-156.75,0.00019024,2]
[346349387,1734904232126,-200.41,0.00019045,2]
[346349388,1734904232135,-363.6100743,0.00019078,2]
[346349389,1734904232144,-501.12,0.000191,2]
[346349391,1734904232153,-797.50604331,0.000191,2]
[346349393,1734904232163,-797.50604326,0.00019121,2]
[346349395,1734904232172,-203.66,0.00019151,2]
[346349397,1734904232181,-797.50604326,0.00019165,2]
[346349399,1734904232190,-363.61007425,0.00019169,2]
[346349401,1734904232199,-3000.0,0.00019177,2]
[346349403,1734904232209,-500.0,0.00019178,2]
[346349405,1734904232218,-500.0,0.00019178,2]
[346349407,1734904232227,-393.03619184,0.00019178,2]
[346349408,1734904232236,-500.0,0.00019178,2]
[346349409,1734904232245,-500.0,0.00019178,2]
[346349410,1734904232254,-500.0,0.00019178,2]
[346349411,1734904232264,-500.0,0.00019178,2]
[346349413,1734904232274,-500.0,0.00019178,2]
[346349415,1734904232283,-500.0,0.00019178,2]
[346349417,1734904232292,-381.18039665,0.00019178,2]
[346349419,1734904232301,-500.0,0.00019178,2]
[346349421,1734904232311,-179.02823339,0.00019178,2]
[346349423,1734904232320,-500.0,0.00019178,2]
[346349425,1734904232329,-500.0,0.00019178,2]
[346349427,1734904232338,-500.0,0.00019178,2]
[346349429,1734904232347,-500.0,0.00019178,2]
[346349431,1734904232356,-2751.59,0.00019178,2]
[346349433,1734904232365,-500.0,0.00019178,2]
[346349435,1734904232374,-500.0,0.00019178,2]
[346349436,1734904232384,-500.0,0.00019178,2]
[346349438,1734904232393,-414.83497898,0.00019178,2]
[346349440,1734904232402,-783.669869,0.00019178,2]
[346349442,1734904232411,-1319.625773,0.00019178,2]
[346349444,1734904232420,-500.0,0.00019178,2]
[346349446,1734904232429,-500.0,0.00019178,2]
[346349448,1734904232438,-500.0,0.00019178,2]
[346349450,1734904232447,-500.0,0.00019178,2]
[346349452,1734904232456,-500.0,0.00019178,2]
[346349455,1734904232468,-500.0,0.00019178,2]
[346349457,1734904232477,-500.0,0.00019178,2]
[346349459,1734904232486,-500.0,0.00019178,2]
[346349461,1734904232495,-500.0,0.00019178,2]
[346349463,1734904232505,-500.0,0.00019178,2]
[346349465,1734904232518,-500.0,0.00019178,2]
[346349466,1734904232529,-500.0,0.00019178,2]
[346349468,1734904232539,-500.0,0.00019178,2]
[346349470,1734904232548,-500.0,0.00019178,2]
[346349472,1734904232557,-500.0,0.00019178,2]
[346349474,1734904232566,-500.0,0.00019178,2]
[346349476,1734904232575,-500.0,0.00019178,2]
[346349478,1734904232584,-500.0,0.00019178,2]
[346349480,1734904232593,-500.0,0.00019178,2]
[346349482,1734904232602,-500.0,0.00019178,2]
[346349484,1734904232611,-500.0,0.00019178,2]
[346349486,1734904232620,-500.0,0.00019178,2]
[346349488,1734904232630,-500.0,0.00019178,2]
[346349490,1734904232639,-500.0,0.00019178,2]
[346349492,1734904232648,-500.84639473,0.00019178,2]
[346349494,1734904232657,-500.0,0.00019178,2]
[346349496,1734904232666,-500.0,0.00019178,2]
[346349498,1734904232675,-301.89824947,0.00019178,2]
[346349500,1734904232685,-500.0,0.00019178,2]
[346349502,1734904232695,-500.0,0.00019178,2]
[346349504,1734904232704,-500.0,0.00019178,2]
[346349506,1734904232713,-500.0,0.00019178,2]
[346349508,1734904232723,-457.3898499,0.00019178,2]
[346349511,1734904232740,-42.6101501,0.00019178,2]
[346349513,1734904232749,-555.57834102,0.00019178,2]
[346349515,1734904232760,-500.0,0.00019178,2]
[346349517,1734904232768,-500.0,0.00019178,2]
[346349519,1734904232777,-125.65763238,0.00019178,2]
[346349543,1734904237801,-374.34236762,0.00019178,2]
[346349544,1734904237810,-500.0,0.00019178,2]
[346349545,1734904237820,-500.0,0.00019178,2]
[346349546,1734904237829,-1474.22,0.00019178,2]
[346349547,1734904237839,-500.0,0.00019178,2]
[346349548,1734904237848,-500.0,0.00019178,2]
[346349549,1734904237858,-500.0,0.00019178,2]
[346349550,1734904237868,-500.0,0.00019178,2]
[346349551,1734904237878,-500.0,0.00019178,2]
[346349552,1734904237888,-500.0,0.00019178,2]
[346349553,1734904237898,-500.0,0.00019178,2]
[346349554,1734904237909,-791.89,0.00019178,2]
[346349555,1734904237919,-500.0,0.00019178,2]
[346349556,1734904237928,-500.0,0.00019178,2]
[346349557,1734904237938,-79.97523868,0.00019178,2]
[346349558,1734904237980,-420.02476132,0.00019178,2]
[346349559,1734904237991,-500.0,0.00019178,2]
[346349560,1734904238006,-500.0,0.00019178,2]
[346349561,1734904238018,-500.0,0.00019178,2]
[346349562,1734904238029,-500.0,0.00019178,2]
[346349563,1734904238039,-386.2957005,0.00019178,2]
[346349564,1734904238131,-113.7042995,0.00019178,2]
[346349565,1734904238140,-500.0,0.00019178,2]
[346349566,1734904238149,-604.27726948,0.00019178,2]
[346349567,1734904238160,-500.0,0.00019178,2]
[346349568,1734904238169,-500.0,0.00019178,2]
[346349569,1734904238179,-500.0,0.00019178,2]
[346349570,1734904238188,-500.0,0.00019178,2]
[346349571,1734904238197,-500.0,0.00019178,2]
[346349572,1734904238206,-500.0,0.00019178,2]
[346349574,1734904238215,-500.0,0.00019178,2]
[346349576,1734904238225,-500.0,0.00019178,2]
[346349578,1734904238234,-643.6319857,0.00019178,2]
[346349580,1734904238243,-500.0,0.00019178,2]
[346349582,1734904238252,-613.26,0.00019178,2]
[346349584,1734904238262,-500.0,0.00019178,2]
[346349586,1734904238274,-500.0,0.00019178,2]
[346349588,1734904238284,-500.0,0.00019178,2]
[346349590,1734904238293,-500.0,0.00019178,2]
[346349592,1734904238304,-500.0,0.00019178,2]
[346349594,1734904238313,-420.93493725,0.00019178,2]
[346349596,1734904238322,-503.77667668,0.00019178,2]
[346349598,1734904238331,-500.0,0.00019178,2]
[346349600,1734904238340,-500.0,0.00019178,2]
[346349602,1734904238349,-659.87,0.00019178,2]
[346349604,1734904238358,-500.0,0.00019178,2]
[346349606,1734904238367,-500.0,0.00019178,2]
[346349608,1734904238376,-500.0,0.00019178,2]
[346349610,1734904238385,-561.63,0.00019178,2]
[346349611,1734904238394,-500.0,0.00019178,2]
[346349613,1734904238405,-500.0,0.00019178,2]
[346349615,1734904238414,-616.26,0.00019178,2]
[346349617,1734904238424,-500.0,0.00019178,2]
[346349619,1734904238432,-500.0,0.00019178,2]
[346349621,1734904238441,-811.64,0.00019178,2]
[346349623,1734904238450,-500.0,0.00019178,2]
[346349625,1734904238459,-500.0,0.00019178,2]
[346349627,1734904238468,-500.0,0.00019178,2]
[346349629,1734904238477,-500.0,0.00019178,2]
[346349631,1734904238486,-500.0,0.00019178,2]
[346349633,1734904238495,-500.0,0.00019178,2]
[346349634,1734904238505,-500.0,0.00019178,2]
[346349637,1734904238514,-500.0,0.00019178,2]
[346349639,1734904238525,-695.43,0.00019178,2]
[346349640,1734904238534,-500.0,0.00019178,2]
[346349643,1734904238543,-500.0,0.00019178,2]
[346349644,1734904238553,-500.0,0.00019178,2]
[346349647,1734904238563,-500.0,0.00019178,2]
[346349648,1734904238572,-500.0,0.00019178,2]
[346349650,1734904238581,-500.0,0.00019178,2]
[346349652,1734904238591,-500.0,0.00019178,2]
[346349654,1734904238600,-500.0,0.00019178,2]
[346349656,1734904238609,-500.0,0.00019178,2]
[346349658,1734904238618,-500.0,0.00019178,2]
[346349660,1734904238627,-500.0,0.00019178,2]
[346349662,1734904238636,-500.0,0.00019178,2]
[346349663,1734904238645,-720.96,0.00019178,2]
[346349664,1734904238655,-502.96262762,0.00019178,2]
[346349665,1734904238664,-500.0,0.00019178,2]
[346349666,1734904238673,-500.0,0.00019178,2]
[346349667,1734904238682,-500.0,0.00019178,2]
[346349669,1734904238691,-500.0,0.00019178,2]
[346349670,1734904238701,-500.0,0.00019178,2]
[346349672,1734904238710,-294.68609322,0.00019178,2]
[346349674,1734904238719,-500.0,0.00019178,2]
[346349676,1734904238729,-500.0,0.00019178,2]
[346349678,1734904238739,-500.0,0.00019178,2]
[346349680,1734904238748,-500.0,0.00019178,2]
[346349682,1734904238757,-500.0,0.00019178,2]
[346349684,1734904238768,-500.0,0.00019178,2]
[346349685,1734904238777,-500.0,0.00019178,2]
[346349686,1734904238786,-500.0,0.00019178,2]
[346349687,1734904238796,-500.0,0.00019178,2]
[346349688,1734904238805,-303.9473379,0.00019178,2]
[346349689,1734904238814,-500.0,0.00019178,2]
[346349690,1734904238823,-500.0,0.00019178,2]
[346349691,1734904238832,-500.0,0.00019178,2]
[346349692,1734904238841,-500.0,0.00019178,2]
[346349693,1734904238852,-500.0,0.00019178,2]
[346349694,1734904238861,-500.0,0.00019178,2]
[346349695,1734904238870,-500.0,0.00019178,2]
[346349696,1734904238879,-500.0,0.00019178,2]
[346349697,1734904238888,-500.0,0.00019178,2]
[346349698,1734904238897,-500.0,0.00019178,2]
[346349699,1734904238907,-500.0,0.00019178,2]
[346349700,1734904238916,-500.0,0.00019178,2]
[346349701,1734904238925,-500.0,0.00019178,2]
[346349702,1734904238934,-1175.72,0.00019178,2]
[346349703,1734904238943,-500.0,0.00019178,2]
[346349704,1734904238952,-500.0,0.00019178,2]
[346349705,1734904238961,-500.0,0.00019178,2]
[346349706,1734904238971,-500.0,0.00019178,2]
[346349707,1734904238980,-500.0,0.00019178,2]
[346349708,1734904238990,-500.0,0.00019178,2]
[346349709,1734904239002,-500.0,0.00019178,2]
[346349710,1734904239011,-500.0,0.00019178,2]
[346349711,1734904239021,-500.0,0.00019178,2]
[346349712,1734904239031,-682.68,0.00019178,2]
[346349713,1734904239040,-500.0,0.00019178,2]
[346349714,1734904239049,-500.0,0.00019178,2]
[346349715,1734904239058,-500.0,0.00019178,2]
[346349716,1734904239068,-500.0,0.00019178,2]
[346349717,1734904239077,-456.32454316,0.00019178,2]
[346349718,1734904239087,-500.0,0.00019178,2]
[346349719,1734904239096,-500.0,0.00019178,2]
[346349720,1734904239105,-661.83,0.00019178,2]
[346349721,1734904239114,-500.0,0.00019178,2]
[346349722,1734904239123,-500.0,0.00019178,2]
[346349723,1734904239132,-500.0,0.00019178,2]
[346349724,1734904239141,-645.9953439,0.00019178,2]
[346349725,1734904239150,-194.5,0.00019178,2]
[346349726,1734904239160,-500.0,0.00019178,2]
[346349727,1734904239169,-500.0,0.00019178,2]
[346349728,1734904239179,-500.0,0.00019178,2]
[346349729,1734904239188,-500.0,0.00019178,2]
[346349730,1734904239197,-500.0,0.00019178,2]
[346349731,1734904239206,-641.86,0.00019178,2]
[346349732,1734904239215,-500.0,0.00019178,2]
[346349733,1734904239225,-500.0,0.00019178,2]
[346349734,1734904239234,-500.0,0.00019178,2]
[346349735,1734904239243,-500.0,0.00019178,2]
[346349736,1734904239252,-500.0,0.00019178,2]
[346349737,1734904239261,-500.0,0.00019178,2]
[346349738,1734904239272,-500.0,0.00019178,2]
[346349739,1734904239282,-500.0,0.00019178,2]
[346349740,1734904239291,-500.0,0.00019178,2]
[346349741,1734904239300,-500.0,0.00019178,2]
[346349742,1734904239309,-500.0,0.00019178,2]
[346349743,1734904239319,-500.0,0.00019178,2]
[346349744,1734904239328,-442.39163453,0.00019178,2]
[346349745,1734904239337,-500.0,0.00019178,2]
[346349746,1734904239346,-500.0,0.00019178,2]
[346349747,1734904239355,-500.0,0.00019178,2]
[346349748,1734904239365,-500.0,0.00019178,2]
[346349749,1734904239374,-1996.7,0.00019178,2]
[346349750,1734904239385,-636.31183445,0.00019178,2]
[346349751,1734904239395,-500.0,0.00019178,2]
[346349752,1734904239405,-500.0,0.00019178,2]
[346349753,1734904239415,-500.0,0.00019178,2]
[346349754,1734904239424,-500.0,0.00019178,2]
[346349755,1734904239433,-695.9,0.00019178,2]
[346349756,1734904239442,-2270.01,0.00019178,2]
[346349757,1734904239452,-1367.25,0.00019178,2]
[346349758,1734904239461,-500.0,0.00019178,2]
[346349759,1734904239471,-500.0,0.00019178,2]
[346349760,1734904239480,-29744.14,0.00019178,2]
[346349761,1734904239489,-500.0,0.00019178,2]
[346349762,1734904239499,-500.0,0.00019178,2]
[346349763,1734904239510,-500.0,0.00019178,2]
[346349764,1734904239521,-500.0,0.00019178,2]
[346349765,1734904239530,-909.76,0.00019178,2]
[346349766,1734904239539,-2593.48,0.00019178,2]
[346349767,1734904239548,-500.0,0.00019178,2]
[346349768,1734904239558,-500.0,0.00019178,2]
[346349769,1734904239567,-500.0,0.00019178,2]
[346349770,1734904239576,-500.0,0.00019178,2]
[346349771,1734904239585,-624.24,0.00019178,2]
[346349772,1734904239594,-1861.58,0.00019178,2]
[346349773,1734904239603,-11224.97,0.00019178,2]
[346349774,1734904239612,-500.0,0.00019178,2]
[346349775,1734904239621,-500.0,0.00019178,2]
[346349776,1734904239630,-4492.31,0.00019178,2]
[346349778,1734904239639,-435.43620578,0.00019178,2]
[346349779,1734904239648,-500.0,0.00019178,2]
[346349780,1734904239658,-1837.47,0.00019178,2]
[346349782,1734904239667,-456.53000016,0.00019178,2]
[346349784,1734904239676,-500.0,0.00019178,2]
[346349785,1734904239685,-1313.21,0.00019178,2]
[346349786,1734904239695,-1020.98,0.00019178,2]
[346349787,1734904239705,-7599.86,0.00019178,2]
[346349788,1734904239714,-1042.08,0.00019178,2]
[346349789,1734904239723,-500.0,0.00019178,2]
[346349790,1734904239734,-14569.17,0.00019178,2]
[346349791,1734904239743,-666.94,0.00019178,2]
[346349793,1734904239752,-500.0,0.00019178,2]
[346349795,1734904239762,-500.0,0.00019178,2]
[346349796,1734904239773,-500.0,0.00019178,2]
[346349797,1734904239783,-712.03,0.00019178,2]
[346349798,1734904239792,-3234.64,0.00019178,2]
[346349799,1734904239801,-1003.28,0.00019178,2]
[346349800,1734904239810,-1116.31,0.00019178,2]
[346349801,1734904239819,-500.0,0.00019178,2]
[346349802,1734904239828,-1582.19,0.00019178,2]
[346349803,1734904239837,-500.0,0.00019178,2]
[346349804,1734904239846,-500.0,0.00019178,2]
[346349805,1734904239855,-588.64,0.00019178,2]
[346349806,1734904239864,-500.0,0.00019178,2]
[346349807,1734904239873,-772.61,0.00019178,2]
[346349808,1734904239882,-2369.92,0.00019178,2]
[346349809,1734904239891,-1789.21,0.00019178,2]
[346349810,1734904239901,-630.56473638,0.00019178,2]
[346349811,1734904239910,-1113.86,0.00019178,2]
[346349812,1734904239919,-500.0,0.00019178,2]
[346349813,1734904239928,-535.4,0.00019178,2]
[346349814,1734904239938,-500.0,0.00019178,2]
[346349815,1734904239947,-624.92,0.00019178,2]
[346349816,1734904239956,-15358.25,0.00019178,2]
[346349817,1734904239965,-3406.04,0.00019178,2]
[346349818,1734904239975,-500.0,0.00019178,2]
[346349819,1734904239985,-1535.8,0.00019178,2]
[346349820,1734904239996,-820.08,0.00019178,2]
[346349821,1734904240006,-500.0,0.00019178,2]
[346349822,1734904240015,-500.0,0.00019178,2]
[346349823,1734904240031,-2169.19,0.00019178,2]
[346349824,1734904240041,-500.0,0.00019178,2]
[346349825,1734904240050,-500.0,0.00019178,2]
[346349826,1734904240060,-500.0,0.00019178,2]
[346349827,1734904240071,-500.0,0.00019178,2]
[346349828,1734904240081,-1200.64,0.00019178,2]
[346349829,1734904240092,-787.87,0.00019178,2]
[346349830,1734904240101,-1384.28,0.00019178,2]
[346349831,1734904240111,-529.54,0.00019178,2]
[346349832,1734904240121,-500.0,0.00019178,2]
[346349833,1734904240130,-1393.16,0.00019178,2]
[346349834,1734904240139,-1559.2,0.00019178,2]
[346349835,1734904240149,-500.0,0.00019178,2]
[346349836,1734904240158,-500.0,0.00019178,2]
[346349837,1734904240167,-500.0,0.00019178,2]
[346349838,1734904240177,-500.0,0.00019178,2]
[346349839,1734904240186,-500.0,0.00019178,2]
[346349840,1734904240196,-802.29,0.00019178,2]
[346349841,1734904240205,-1019.72,0.00019178,2]
[346349842,1734904240215,-3615.45,0.00019178,2]
[346349843,1734904240225,-500.0,0.00019178,2]
[346349844,1734904240234,-500.0,0.00019178,2]
[346349845,1734904240244,-500.0,0.00019178,2]
[346349846,1734904240253,-500.0,0.00019178,2]
[346349847,1734904240262,-500.0,0.00019178,2]